fUSD/lending_fUSD_20240803
["ID","MTS","AMOUNT","RATE_DAILY","PERIOD"]
[334062360,1722715839852,-7270.63072608,0.00020899,2]
[334062362,1722715839861,-526.17759152,0.00020899,2]
[334062364,1722715839871,-1175.8459067,0.00020899,2]
[334062366,1722715839880,-155.0,0.00020899,2]
[334062368,1722715839892,-454.10742711,0.00020927,2]
[334062370,1722715839901,-200.0,0.00020951,2]
[334062372,1722715839910,-3079.46952702,0.00020999,2]
[334062374,1722715839919,-414.46947475,0.00020999,2]
[334062376,1722715839928,-642.0,0.00021191,2]
[334062378,1722715839937,-285.37,0.0002129,2]
[334062380,1722715839950,-200.0,0.00021346,2]
[334062382,1722715839959,-150.0,0.000216,2]
[334062385,1722715839969,-472.4,0.00021754,2]
[334062386,1722715839979,-150.0,0.00021918,2]
[334062388,1722715839988,-551.98,0.00021918,2]
[334062390,1722715839997,-454.10742711,0.0002192,2]
[334062392,1722715840007,-150.0,0.00022495,2]
[334062394,1722715840016,-454.10742711,0.00022914,2]
[334062396,1722715840025,-150.0,0.00023071,2]
[334062398,1722715840034,-1000.0,0.00023147,2]
[334062400,1722715840043,-180.0,0.00023205,2]
[334062402,1722715840053,-200.0,0.00023279,2]
[334062405,1722715840063,-900.0,0.000233,8]
[334062406,1722715840074,-2904.2963,0.00023351,2]
[334062408,1722715840083,-1800.0,0.000234,8]
[334062410,1722715840092,-285.37,0.00023419,2]
[334062412,1722715840102,-265.21397656,0.00023451,2]
[334062415,1722715840111,-357.14442617,0.00023451,2]
[334062417,1722715840120,-336.67819786,0.00023451,2]
[334062418,1722715840130,-236.13758284,0.00023451,2]
[334062420,1722715840139,-200.0,0.0002348,2]
[334062422,1722715840149,-172.89,0.00023492,2]
[334062425,1722715840159,-2700.0,0.000235,8]
[334062427,1722715840169,-79483.0,0.00023522,2]
[334062428,1722715840178,-1930.20669701,0.00023555,2]
[334062430,1722715840188,-3600.0,0.000236,8]
[334062433,1722715840201,-150.0,0.00023648,2]
[334062435,1722715840211,-4500.0,0.000237,8]
[334062437,1722715840221,-383.563368,0.00023705,2]
[334062439,1722715840231,-1640.7916,0.00023773,2]
[334062441,1722715840241,-900.0,0.000238,8]
[334062443,1722715840252,-1526.77659901,0.00023873,2]
[334062445,1722715840261,-476.52703085,0.00023873,2]
[334062447,1722715840270,-1526.77659901,0.00023873,2]
[334062449,1722715840280,-1049.73016214,0.00023873,40]
[334062451,1722715840289,-347.37102947,0.00023873,2]
[334062453,1722715840298,-155.0,0.00023873,2]
[334062455,1722715840308,-155.0,0.00023873,2]
[334062457,1722715840317,-159.47000849,0.00023873,2]
[334062459,1722715840327,-10000.0,0.000239,2]
[334062461,1722715840336,-1000.0,0.000239,2]
[334062463,1722715840345,-900.0,0.000239,8]
[334062465,1722715840354,-172.1303994,0.000239,2]
[334062467,1722715840363,-222.9761057,0.000239,2]
[334062469,1722715840372,-454.10742711,0.00023907,2]
[334062471,1722715840381,-200.0,0.00023973,2]
[334062473,1722715840390,-150.24,0.0002399,2]
[334062475,1722715840400,-150.0,0.00023999,10]
[334062477,1722715840409,-150.0,0.00023999,10]
[334062479,1722715840418,-150.0,0.00023999,10]
[334062481,1722715840427,-150.0,0.00023999,10]
[334062483,1722715840436,-200.74138353,0.00023999,10]
[334062485,1722715840448,-2048.95120685,0.00024,2]
[334062486,1722715840457,-1143979.11594219,0.00024,11]
[334062488,1722715840466,-8690122.78363695,0.00024,5]
[334062491,1722715840480,-532756.45480092,0.00024,5]
[334062493,1722715840491,-514.74031448,0.00024,5]
[334062495,1722715840502,-655.43194,0.00024,5]
[334062497,1722715840513,-333.49437701,0.00024,5]
[334062499,1722715840524,-2677.50344484,0.00024,5]
[334062502,1722715840535,-2308.47229581,0.00024,5]
[334062528,1722715840774,-650.45,0.00011105,2]
[334062532,1722715840802,-1493.63330696,0.00011105,2]
[334062534,1722715840816,-155.15490372,0.00011896,2]
[334062536,1722715840825,-250.0,0.00016668,2]
[334062538,1722715840833,-722.78328973,0.00016882,2]
[334062540,1722715840845,-194.81876496,0.00023451,2]
[334062542,1722715840856,-1175227.18918999,0.00024,5]
[334062544,1722715840867,-302836.0,0.00024,2]
[334062546,1722715840876,-2000.0,0.00024,2]
[334062548,1722715840886,-200.0,0.00024,2]
[334062550,1722715840895,-270.82770935,0.00024,4]
[334062552,1722715840905,-2686.97684,0.00024,2]
[334062554,1722715840915,-472.4,0.00024018,2]
[334062557,1722715840924,-150.0,0.00024114,10]
[334062560,1722715840933,-12500.0,0.00024115,2]
[334062563,1722715840946,-164.23718751,0.00024124,2]
[334062566,1722715840955,-462.09579509,0.00024124,2]
[334062569,1722715840964,-686.12664862,0.00024124,2]
[334062572,1722715840974,-357.45854197,0.00024124,2]
[334062574,1722715840985,-307.55575028,0.00024124,2]
[334062576,1722715840994,-649.29247659,0.00024124,2]
[334062578,1722715841003,-270.32721242,0.00024124,2]
[334062580,1722715841012,-682.6933586,0.00024124,2]
[334062582,1722715841022,-363.85697976,0.00024124,2]
[334062584,1722715841032,-2023.34906436,0.00024124,2]
[334062586,1722715841042,-900.0,0.00024156,2]
[334062588,1722715841051,-150.0,0.00024225,2]
[334062590,1722715841060,-2000.0,0.0002424,2]
[334062592,1722715841070,-200.0,0.0002424,2]
[334062594,1722715841079,-1500.0,0.00024418,2]
[334062596,1722715841089,-200.0,0.00024482,2]
[334062598,1722715841098,-200.0,0.00024492,2]
[334062600,1722715841107,-685.55781762,0.000245,2]
[334062602,1722715841116,-4413.33340768,0.000245,2]
[334062604,1722715841125,-900.0,0.000246,8]
[334062606,1722715841135,-150.0,0.00024656,10]
[334062608,1722715841144,-500.0,0.00024657,9]
[334062610,1722715841154,-500.0,0.00024657,9]
[334062612,1722715841163,-500.0,0.00024657,9]
[334062614,1722715841172,-580.34,0.00024657,9]
[334062616,1722715841182,-500.0,0.00024657,9]
[334062618,1722715841195,-500.0,0.00024657,9]
[334062620,1722715841204,-500.0,0.00024657,9]
[334062622,1722715841213,-500.0,0.00024657,9]
[334062624,1722715841223,-500.0,0.00024657,9]
[334062626,1722715841232,-500.0,0.00024657,9]
[334062628,1722715841241,-500.0,0.00024657,9]
[334062630,1722715841251,-394.23055688,0.00024657,9]
[334062632,1722715841260,-500.0,0.00024657,9]
[334062634,1722715841269,-500.0,0.00024657,9]
[334062635,1722715841279,-500.0,0.00024657,9]
[334062637,1722715841288,-500.0,0.00024657,9]
[334062639,1722715841297,-546.38,0.00024657,9]
[334062641,1722715841306,-500.0,0.00024657,9]
[334062643,1722715841315,-500.0,0.00024657,9]
[334062645,1722715841324,-537.24,0.00024657,9]
[334062647,1722715841333,-500.0,0.00024657,9]
[334062649,1722715841343,-500.0,0.00024657,9]
[334062651,1722715841352,-500.0,0.00024657,9]
[334062653,1722715841361,-500.0,0.00024657,9]
[334062655,1722715841372,-500.0,0.00024657,9]
[334062658,1722715841382,-500.0,0.00024657,9]
[334062659,1722715841391,-500.0,0.00024657,9]
[334062660,1722715841401,-639.27,0.00024657,9]
[334062661,1722715841410,-500.0,0.00024657,9]
[334062662,1722715841418,-189.17,0.00024657,9]
[334062663,1722715841427,-500.0,0.00024657,9]
[334062664,1722715841436,-500.0,0.00024657,9]
[334062665,1722715841447,-500.0,0.00024657,9]
[334062666,1722715841456,-500.0,0.00024657,9]
[334062667,1722715841465,-500.0,0.00024657,9]
[334062669,1722715841474,-500.0,0.00024657,9]
[334062671,1722715841483,-500.0,0.00024657,9]
[334062673,1722715841493,-500.0,0.00024657,9]
[334062675,1722715841502,-500.0,0.00024657,9]
[334062677,1722715841511,-500.0,0.00024657,9]
[334062679,1722715841520,-500.0,0.00024657,9]
[334062681,1722715841530,-351.16,0.00024657,9]
[334062683,1722715841539,-500.0,0.00024657,9]
[334062685,1722715841548,-500.0,0.00024657,9]
[334062687,1722715841556,-500.0,0.00024657,9]
[334062689,1722715841565,-500.0,0.00024657,9]
[334062691,1722715841574,-500.0,0.00024657,9]
[334062693,1722715841583,-500.0,0.00024657,9]
[334062695,1722715841592,-500.0,0.00024657,9]
[334062697,1722715841602,-646.08,0.00024657,9]
[334062699,1722715841611,-500.0,0.00024657,9]
[334062700,1722715841620,-525.72,0.00024657,9]
[334062702,1722715841629,-500.0,0.00024657,9]
[334062704,1722715841639,-500.0,0.00024657,9]
[334062706,1722715841648,-500.0,0.00024657,9]
[334062708,1722715841658,-500.0,0.00024657,9]
[334062710,1722715841668,-500.0,0.00024657,9]
[334062712,1722715841677,-500.0,0.00024657,9]
[334062714,1722715841687,-500.0,0.00024657,9]
[334062716,1722715841702,-500.0,0.00024657,9]
[334062718,1722715841712,-500.0,0.00024657,9]
[334062720,1722715841721,-500.0,0.00024657,9]
[334062722,1722715841730,-500.0,0.00024657,9]
[334062725,1722715841739,-500.0,0.00024657,9]
[334062727,1722715841748,-500.0,0.00024657,9]
[334062728,1722715841757,-500.0,0.00024657,9]
[334062730,1722715841767,-500.0,0.00024657,9]
[334062732,1722715841776,-500.0,0.00024657,9]
[334062734,1722715841785,-500.0,0.00024657,9]
[334062736,1722715841795,-500.0,0.00024657,9]
[334062738,1722715841804,-298.94,0.00024657,9]
[334062740,1722715841816,-500.0,0.00024657,9]
[334062742,1722715841825,-500.0,0.00024657,9]
[334062744,1722715841835,-500.0,0.00024657,9]
[334062746,1722715841844,-500.0,0.00024657,9]
[334062748,1722715841855,-500.0,0.00024657,9]
[334062750,1722715841864,-566.04,0.00024657,9]
[334062752,1722715841872,-591.8,0.00024657,9]
[334062754,1722715841881,-500.0,0.00024657,9]
[334062756,1722715841891,-500.0,0.00024657,9]
[334062758,1722715841900,-500.0,0.00024657,9]
[334062760,1722715841909,-500.0,0.00024657,9]
[334062762,1722715841918,-500.0,0.00024657,9]
[334062764,1722715841927,-500.0,0.00024657,9]
[334062766,1722715841937,-575.7074854,0.00024657,9]
[334062768,1722715841950,-500.0,0.00024657,9]
[334062770,1722715841959,-500.0,0.00024657,9]
[334062772,1722715841968,-500.0,0.00024657,9]
[334062774,1722715841977,-500.0,0.00024657,9]
[334062788,1722715842106,-500.0,0.00024657,9]
[334062790,1722715842116,-500.0,0.00024657,9]
[334062792,1722715842125,-500.0,0.00024657,9]
[334062794,1722715842134,-500.0,0.00024657,9]
[334062796,1722715842143,-500.0,0.00024657,9]
[334062798,1722715842152,-345.50336203,0.00024657,9]
[334062800,1722715842162,-500.0,0.00024657,9]
[334062802,1722715842172,-336.75035048,0.00024657,9]
[334062805,1722715842189,-163.24964952,0.00024657,9]
[334062807,1722715842202,-352.09,0.00024657,9]
[334062809,1722715842211,-500.0,0.00024657,9]
[334062811,1722715842220,-500.0,0.00024657,9]
[334062813,1722715842229,-500.0,0.00024657,9]
[334062815,1722715842239,-348.18,0.00024657,9]
[334062817,1722715842248,-500.0,0.00024657,9]
[334062819,1722715842257,-500.0,0.00024657,9]
[334062821,1722715842266,-275.7782013,0.00024657,9]
[334062823,1722715842276,-500.0,0.00024657,9]
[334062825,1722715842285,-419.6,0.00024657,9]
[334062827,1722715842294,-500.0,0.00024657,9]
[334062828,1722715842304,-500.0,0.00024657,9]
[334062830,1722715842313,-18.80011137,0.00024657,9]
[334062833,1722715842325,-166.23988863,0.00024657,9]
[334062835,1722715842335,-500.0,0.00024657,9]
[334062837,1722715842344,-500.0,0.00024657,9]
[334062839,1722715842353,-500.0,0.00024657,9]
[334062841,1722715842363,-534.24,0.00024657,9]
[334062843,1722715842372,-243.99942199,0.00024657,9]
[334062845,1722715842381,-500.0,0.00024657,9]
[334062846,1722715842390,-500.0,0.00024657,9]
[334062848,1722715842400,-500.0,0.00024657,9]
[334062851,1722715842410,-500.0,0.00024657,9]
[334062853,1722715842420,-500.0,0.00024657,9]
[334062855,1722715842429,-500.0,0.00024657,9]
[334062857,1722715842440,-508.12,0.00024657,9]
[334062859,1722715842449,-500.0,0.00024657,9]
[334062861,1722715842458,-500.0,0.00024657,9]
[334062863,1722715842467,-543.44,0.00024657,9]
[334062865,1722715842476,-500.0,0.00024657,9]
[334062867,1722715842486,-500.0,0.00024657,9]
[334062869,1722715842497,-413.67,0.00024657,9]
[334062871,1722715842508,-500.0,0.00024657,9]
[334062873,1722715842518,-500.0,0.00024657,9]
[334062875,1722715842529,-623.82,0.00024657,9]
[334062877,1722715842539,-500.0,0.00024657,9]
[334062879,1722715842549,-500.0,0.00024657,9]
[334062882,1722715842559,-357.6,0.00024657,9]
[334062884,1722715842568,-500.0,0.00024657,9]
[334062886,1722715842577,-209.58,0.00024657,9]
[334062888,1722715842587,-500.0,0.00024657,9]
[334062890,1722715842596,-500.0,0.00024657,9]
[334062892,1722715842606,-161.71310455,0.00024657,9]
[334062894,1722715842615,-500.0,0.00024657,9]
[334062896,1722715842624,-500.0,0.00024657,9]
[334062897,1722715842633,-500.0,0.00024657,9]
[334062900,1722715842643,-500.0,0.00024657,9]
[334062903,1722715842652,-500.0,0.00024657,9]
[334062906,1722715842661,-500.0,0.00024657,9]
[334062909,1722715842671,-500.0,0.00024657,9]
[334062912,1722715842680,-500.0,0.00024657,9]
[334062915,1722715842692,-500.0,0.00024657,9]
[334062918,1722715842702,-500.0,0.00024657,9]
[334062920,1722715842711,-500.0,0.00024657,9]
[334062922,1722715842721,-500.0,0.00024657,9]
[334062924,1722715842730,-483.63,0.00024657,9]
[334062926,1722715842740,-500.0,0.00024657,9]
[334062928,1722715842749,-500.0,0.00024657,9]
[334062930,1722715842758,-500.0,0.00024657,9]
[334062933,1722715842767,-500.0,0.00024657,9]
[334062934,1722715842777,-500.0,0.00024657,9]
[334062936,1722715842786,-500.0,0.00024657,9]
[334062938,1722715842795,-482.88,0.00024657,9]
[334062940,1722715842805,-500.0,0.00024657,9]
[334062942,1722715842818,-533.22,0.00024657,9]
[334062944,1722715842826,-107.0776943,0.00024657,9]
[334062948,1722715842849,-392.9223057,0.00024657,9]
[334062951,1722715842858,-500.0,0.00024657,9]
[334062954,1722715842868,-500.0,0.00024657,9]
[334062957,1722715842877,-367.89671254,0.00024657,9]
[334062959,1722715842892,-132.10328746,0.00024657,9]
[334062961,1722715842901,-573.60671254,0.00024657,9]
[334062963,1722715842913,-46.77328746,0.00024657,9]
[334062965,1722715842922,-389.38171254,0.00024657,9]
[334062989,1722715843130,-553.84057893,0.00011896,2]
[334062991,1722715843139,-663.55642143,0.00019599,2]
[334062993,1722715843155,-448.84572396,0.00019599,2]
[334062995,1722715843165,-2610.83978144,0.0002,2]
[334062998,1722715843176,-3677.66456919,0.0002,2]
[334063000,1722715843186,-300.72464178,0.00023451,2]
[334063002,1722715843199,-2378.23535822,0.00023451,2]
[334063004,1722715843209,-237.64828746,0.00024657,9]
[334063006,1722715843218,-500.0,0.00024657,9]
[334063007,1722715843227,-646.58,0.00024657,9]
[334063008,1722715843237,-500.0,0.00024657,9]
[334063009,1722715843246,-588.38,0.00024657,9]
[334063010,1722715843255,-500.0,0.00024657,9]
[334063011,1722715843265,-601.64,0.00024657,9]
[334063012,1722715843274,-500.0,0.00024657,9]
[334063013,1722715843283,-500.0,0.00024657,9]
[334063014,1722715843292,-332.8,0.00024657,9]
[334063015,1722715843301,-500.0,0.00024657,9]
[334063016,1722715843310,-500.0,0.00024657,9]
[334063017,1722715843320,-500.0,0.00024657,9]
[334063018,1722715843329,-264.01,0.00024657,9]
[334063019,1722715843339,-500.0,0.00024657,9]
[334063020,1722715843348,-500.0,0.00024657,9]
[334063021,1722715843357,-171.39,0.00024657,9]
[334063022,1722715843367,-500.0,0.00024657,9]
[334063023,1722715843376,-500.0,0.00024657,9]
[334063024,1722715843385,-305.21,0.00024657,9]
[334063026,1722715843394,-67.80047124,0.00024657,9]
[334063028,1722715843406,-432.19952876,0.00024657,9]
[334063030,1722715843415,-560.94909688,0.00024657,9]
[334063032,1722715843425,-500.0,0.00024657,9]
[334063034,1722715843434,-500.0,0.00024657,9]
[334063037,1722715843445,-500.0,0.00024657,9]
[334063039,1722715843455,-500.0,0.00024657,9]
[334063042,1722715843464,-273.61,0.00024657,9]
[334063044,1722715843474,-500.0,0.00024657,9]
[334063046,1722715843483,-500.0,0.00024657,9]
[334063048,1722715843493,-202.14339532,0.00024657,9]
[334063050,1722715843504,-297.85660468,0.00024657,9]
[334063052,1722715843513,-492.54451113,0.00024657,9]
[334063055,1722715843525,-7.45548887,0.00024657,9]
[334063057,1722715843536,-436.24992065,0.00024657,9]
[334063194,1722715844849,-63.75007935,0.00024657,9]
[334063196,1722715844859,-500.0,0.00024657,9]
[334063198,1722715844868,-160.37,0.00024657,9]
[334063200,1722715844877,-500.0,0.00024657,9]
[334063202,1722715844888,-507.35,0.00024657,9]
[334063204,1722715844898,-500.0,0.00024657,9]
[334063206,1722715844907,-284.27902498,0.00024657,9]
[334063208,1722715844917,-500.0,0.00024657,9]
[334063210,1722715844930,-500.0,0.00024657,9]
[334063212,1722715844940,-293.33,0.00024657,9]
[334063214,1722715844952,-500.0,0.00024657,9]
[334063216,1722715844961,-68.56593015,0.00024657,9]
[334063219,1722715844974,-431.43406985,0.00024657,9]
[334063221,1722715844983,-500.0,0.00024657,9]
[334063223,1722715844992,-500.0,0.00024657,9]
[334063225,1722715845001,-500.0,0.00024657,9]
[334063227,1722715845010,-639.59,0.00024657,9]
[334063229,1722715845020,-500.0,0.00024657,9]
[334063231,1722715845029,-555.52,0.00024657,9]
[334063233,1722715845038,-597.0,0.00024657,9]
[334063234,1722715845048,-500.0,0.00024657,9]
[334063236,1722715845057,-500.0,0.00024657,9]
[334063238,1722715845067,-500.0,0.00024657,9]
[334063241,1722715845077,-500.0,0.00024657,9]
[334063244,1722715845105,-500.0,0.00024657,9]
[334063245,1722715845115,-500.0,0.00024657,9]
[334063246,1722715845126,-500.0,0.00024657,9]
[334063247,1722715845137,-500.0,0.00024657,9]
[334063248,1722715845148,-587.18,0.00024657,9]
[334063249,1722715845158,-500.0,0.00024657,9]
[334063250,1722715845168,-500.0,0.00024657,9]
[334063251,1722715845179,-191.26588115,0.00024657,9]
[334063343,1722715846263,-155.0,0.00016999,2]
[334063344,1722715846273,-206.59146968,0.00019725,2]
[334063345,1722715846283,-308.73411885,0.00024657,9]
[334063346,1722715846293,-190.33,0.00024657,9]
[334063347,1722715846303,-112.65242905,0.00024657,9]
[334063348,1722715846315,-387.34757095,0.00024657,9]
[334063349,1722715846325,-500.0,0.00024657,9]
[334063350,1722715846334,-500.0,0.00024657,9]
[334063351,1722715846344,-500.0,0.00024657,9]
[334063352,1722715846353,-500.0,0.00024657,9]
[334063353,1722715846363,-500.0,0.00024657,9]
[334063354,1722715846373,-500.0,0.00024657,9]
[334063355,1722715846383,-500.0,0.00024657,9]
[334063356,1722715846392,-223.97292665,0.00024657,9]
[334063357,1722715846402,-500.0,0.00024657,9]
[334063358,1722715846411,-301.99,0.00024657,9]
[334063359,1722715846421,-500.0,0.00024657,9]
[334063360,1722715846432,-500.0,0.00024657,9]
[334063361,1722715846441,-500.0,0.00024657,9]
[334063362,1722715846452,-500.0,0.00024657,9]
[334063363,1722715846462,-291.64,0.00024657,9]
[334063364,1722715846471,-531.35,0.00024657,9]
[334063365,1722715846481,-500.0,0.00024657,9]
[334063366,1722715846491,-253.8,0.00024657,9]
[334063367,1722715846500,-500.0,0.00024657,9]
[334063368,1722715846510,-500.0,0.00024657,9]
[334063369,1722715846519,-621.1,0.00024657,9]
[334063370,1722715846529,-500.0,0.00024657,9]
[334063371,1722715846538,-326.66,0.00024657,9]
[334063372,1722715846547,-500.0,0.00024657,9]
[334063373,1722715846556,-500.0,0.00024657,9]
[334063374,1722715846565,-469.89,0.00024657,9]
[334063375,1722715846575,-500.0,0.00024657,9]
[334063376,1722715846585,-649.04,0.00024657,9]
[334063377,1722715846594,-500.0,0.00024657,9]
[334063378,1722715846604,-500.0,0.00024657,9]
[334063379,1722715846613,-500.0,0.00024657,9]
[334063380,1722715846623,-500.0,0.00024657,9]
[334063381,1722715846632,-500.0,0.00024657,9]
[334063382,1722715846642,-500.0,0.00024657,9]
[334063384,1722715846652,-500.0,0.00024657,9]
[334063386,1722715846662,-361.09,0.00024657,9]
[334063387,1722715846671,-500.0,0.00024657,9]
[334063388,1722715846681,-500.0,0.00024657,9]
[334063389,1722715846690,-500.0,0.00024657,9]
[334063391,1722715846702,-500.0,0.00024657,9]
[334063393,1722715846711,-477.53,0.00024657,9]
[334063394,1722715846721,-500.0,0.00024657,9]
[334063395,1722715846730,-500.0,0.00024657,9]
[334063396,1722715846739,-500.0,0.00024657,9]
[334063397,1722715846748,-500.0,0.00024657,9]
[334063398,1722715846758,-500.0,0.00024657,9]
[334063399,1722715846767,-500.0,0.00024657,9]
[334063400,1722715846776,-500.0,0.00024657,9]
[334063401,1722715846786,-500.0,0.00024657,9]
[334063402,1722715846795,-500.0,0.00024657,9]
[334063403,1722715846807,-500.0,0.00024657,9]
[334063404,1722715846820,-500.0,0.00024657,9]
[334063405,1722715846829,-500.0,0.00024657,9]
[334063406,1722715846839,-500.0,0.00024657,9]
[334063407,1722715846849,-500.0,0.00024657,9]
[334063408,1722715846858,-500.0,0.00024657,9]
[334063409,1722715846867,-500.0,0.00024657,9]
[334063410,1722715846878,-500.0,0.00024657,9]
[334063411,1722715846888,-500.0,0.00024657,9]
[334063412,1722715846898,-500.0,0.00024657,9]
[334063413,1722715846907,-500.0,0.00024657,9]
[334063414,1722715846917,-500.0,0.00024657,9]
[334063415,1722715846926,-500.0,0.00024657,9]
[334063416,1722715846935,-500.0,0.00024657,9]
[334063417,1722715846945,-500.0,0.00024657,9]
[334063418,1722715846955,-500.0,0.00024657,9]
[334063419,1722715846964,-500.0,0.00024657,9]
[334063420,1722715846974,-500.0,0.00024657,9]
[334063421,1722715846983,-500.0,0.00024657,9]
[334063422,1722715846993,-500.0,0.00024657,9]
[334063423,1722715847002,-500.0,0.00024657,9]
[334063424,1722715847012,-500.0,0.00024657,9]
[334063425,1722715847021,-521.02,0.00024657,9]
[334063426,1722715847030,-500.0,0.00024657,9]
[334063427,1722715847039,-500.0,0.00024657,9]
[334063428,1722715847050,-500.0,0.00024657,9]
[334063429,1722715847059,-500.0,0.00024657,9]
[334063430,1722715847068,-500.0,0.00024657,9]
[334063431,1722715847077,-500.0,0.00024657,9]
[334063432,1722715847087,-500.0,0.00024657,9]
[334063433,1722715847096,-500.0,0.00024657,9]
[334063434,1722715847106,-500.0,0.00024657,9]
[334063435,1722715847116,-500.0,0.00024657,9]
[334063436,1722715847125,-500.0,0.00024657,9]
[334063437,1722715847134,-590.77,0.00024657,9]
[334063438,1722715847143,-500.0,0.00024657,9]
[334063439,1722715847153,-500.0,0.00024657,9]
[334063440,1722715847163,-500.0,0.00024657,9]
[334063441,1722715847173,-500.0,0.00024657,9]
[334063442,1722715847182,-500.0,0.00024657,9]
[334063443,1722715847191,-500.0,0.00024657,9]
[334063444,1722715847204,-443.12999999,0.00024657,9]
[334063445,1722715847213,-583.63888026,0.00024657,9]
[334063446,1722715847222,-500.0,0.00024657,9]
[334063447,1722715847232,-320.04002174,0.00024657,9]
[334063448,1722715847242,-500.0,0.00024657,9]
[334063449,1722715847253,-633.37,0.00024657,9]
[334063450,1722715847263,-500.0,0.00024657,9]
[334063451,1722715847273,-500.0,0.00024657,9]
[334063452,1722715847282,-500.0,0.00024657,9]
[334063453,1722715847291,-231.01,0.00024657,9]
[334063454,1722715847300,-500.0,0.00024657,9]
[334063455,1722715847308,-568.43279509,0.00024657,9]
[334063456,1722715847317,-505.66,0.00024657,9]
[334063457,1722715847326,-630.84,0.00024657,9]
[334063458,1722715847334,-500.0,0.00024657,9]
[334063459,1722715847343,-500.0,0.00024657,9]
[334063460,1722715847351,-500.0,0.00024657,9]
[334063461,1722715847360,-500.0,0.00024657,9]
[334063462,1722715847368,-500.0,0.00024657,9]
[334063463,1722715847377,-597.87,0.00024657,9]
[334063464,1722715847386,-500.0,0.00024657,9]
[334063465,1722715847394,-422.71,0.00024657,9]
[334063466,1722715847404,-500.0,0.00024657,9]
[334063467,1722715847413,-500.0,0.00024657,9]
[334063468,1722715847422,-500.0,0.00024657,9]
[334063469,1722715847431,-500.0,0.00024657,9]
[334063470,1722715847440,-500.0,0.00024657,9]
[334063471,1722715847452,-500.0,0.00024657,9]
[334063472,1722715847461,-500.0,0.00024657,9]
[334063473,1722715847471,-552.75,0.00024657,9]
[334063474,1722715847478,-500.0,0.00024657,9]
[334063475,1722715847485,-500.0,0.00024657,9]
[334063476,1722715847493,-500.0,0.00024657,9]
[334063477,1722715847503,-500.0,0.00024657,9]
[334063478,1722715847512,-500.0,0.00024657,9]
[334063479,1722715847521,-500.0,0.00024657,9]
[334063480,1722715847530,-500.0,0.00024657,9]
[334063481,1722715847540,-500.0,0.00024657,9]
[334063482,1722715847549,-500.0,0.00024657,9]
[334063483,1722715847558,-490.73000001,0.00024657,9]
[334063484,1722715847567,-500.0,0.00024657,9]
[334063485,1722715847576,-511.71943271,0.00024657,9]
[334063486,1722715847585,-500.0,0.00024657,9]
[334063487,1722715847595,-645.49,0.00024657,9]
[334063488,1722715847659,-500.0,0.00024657,9]
[334063489,1722715847670,-500.0,0.00024657,9]
[334063490,1722715847679,-341.99,0.00024657,9]
[334063491,1722715847689,-500.0,0.00024657,9]
[334063492,1722715847699,-500.0,0.00024657,9]
[334063493,1722715847709,-500.0,0.00024657,9]